[Event "Titled Tuesday Blitz March 21 Late 2023"]
[White "Carlsen, Magnus"]
[Black "Dardha, Daniel"]
[WhiteFideId "1503014"]
[BlackFideId "240990"]
[WhiteElo "2852"]
[BlackElo "2581"]
[Result "1-0"]
[Round "04"]
[TimeControl "180+2"]
[Date "2023.03.21"]
[WhiteClock "0:00:23"]
[BlackClock "0:00:01"]

1. e4 {[%clk 0:03:00]}  e5 {[%clk 0:02:59]} 2. Nf3 {[%clk 0:03:00]}  Nc6 {[%clk 0:02:59]} 3. Bb5 {[%clk 0:03:00]}  Nf6 {[%clk 0:02:59]} 4. O-O {[%clk 0:02:54]}  Nxe4 {[%clk 0:02:59]} 5. Re1 {[%clk 0:02:55]}  Nd6 {[%clk 0:02:59]} 6. Nxe5 {[%clk 0:02:55]}  Be7 {[%clk 0:03:00]} 7. Bf1 {[%clk 0:02:54]}  Nxe5 {[%clk 0:02:58]} 8. Rxe5 {[%clk 0:02:55]}  O-O {[%clk 0:02:59]} 9. d4 {[%clk 0:02:55]}  Bf6 {[%clk 0:02:59]} 10. Re1 {[%clk 0:02:55]}  Re8 {[%clk 0:02:59]} 11. Bf4 {[%clk 0:02:48]}  Rxe1 {[%clk 0:02:56]} 12. Qxe1 {[%clk 0:02:49]}  Ne8 {[%clk 0:02:56]} 13. c3 {[%clk 0:02:47]}  d5 {[%clk 0:02:56]} 14. Nd2 {[%clk 0:02:46]}  c6 {[%clk 0:02:48]} 15. a4 {[%clk 0:02:40]}  Bf5 {[%clk 0:02:42]} 16. a5 {[%clk 0:02:38]}  Nd6 {[%clk 0:02:39]} 17. Nb3 {[%clk 0:02:22]}  Qf8 {[%clk 0:02:35]} 18. Nc5 {[%clk 0:02:17]}  Re8 {[%clk 0:02:14]} 19. Bxd6 {[%clk 0:02:08]}  Rxe1 {[%clk 0:02:13]} 20. Rxe1 {[%clk 0:02:08]}  Qc8 {[%clk 0:01:55]} 21. Nxb7 {[%clk 0:02:02]}  h5 {[%clk 0:01:46]} 22. a6 {[%clk 0:02:02]}  h4 {[%clk 0:01:37]} 23. Bc5 {[%clk 0:02:01]}  Qb8 {[%clk 0:01:27]} 24. h3 {[%clk 0:01:56]}  Be4 {[%clk 0:01:00]} 25. b4 {[%clk 0:01:43]}  Bg5 {[%clk 0:00:57]} 26. Nd6 {[%clk 0:01:18]}  Bd2 {[%clk 0:00:50]} 27. Re2 {[%clk 0:01:18]}  Bxc3 {[%clk 0:00:49]} 28. Nxe4 {[%clk 0:01:14]}  dxe4 {[%clk 0:00:49]} 29. Rxe4 {[%clk 0:01:15]}  Bxb4 {[%clk 0:00:44]} 30. Re7 {[%clk 0:01:15]}  Bxc5 {[%clk 0:00:41]} 31. dxc5 {[%clk 0:01:16]}  g5 {[%clk 0:00:14]} 32. Rb7 {[%clk 0:01:11]}  Qe5 {[%clk 0:00:14]} 33. Rxa7 {[%clk 0:01:10]}  Qxc5 {[%clk 0:00:14]} 34. Rd7 {[%clk 0:01:06]}  Qa5 {[%clk 0:00:13]} 35. a7 {[%clk 0:01:05]}  Kg7 {[%clk 0:00:13]} 36. Bc4 {[%clk 0:00:54]}  Qa1+ {[%clk 0:00:10]} 37. Kh2 {[%clk 0:00:53]}  Qe5+ {[%clk 0:00:10]} 38. g3 {[%clk 0:00:51]}  hxg3+ {[%clk 0:00:06]} 39. Kg2 {[%clk 0:00:51]}  Qe4+ {[%clk 0:00:05]} 40. Kxg3 {[%clk 0:00:49]}  Qf4+ {[%clk 0:00:03]} 41. Kg2 {[%clk 0:00:49]}  Qe4+ {[%clk 0:00:03]} 42. Kg1 {[%clk 0:00:37]}  Qb1+ {[%clk 0:00:01]} 43. Bf1 {[%clk 0:00:35]}  Qa2 {[%clk 0:00:01]} 44. Rc7 {[%clk 0:00:33]}  c5 {[%clk 0:00:01]} 45. Bc4 {[%clk 0:00:23]}  Qa1+ {[%clk 0:00:01]} 46. Kg2 {[%clk 0:00:23]}  Qa5 {[%clk 0:00:01]} 47. Rxf7+ {[%clk 0:00:23]}  Kg6 {[%clk 0:00:01]} 48. Bd5 {[%clk 0:00:23]} 1-0


[Site "https://www.chess.com"]

[Event "Titled Tuesday Blitz March 21 Late 2023"]
[White "Sargsyan, Shant"]
[Black "Durarbayli, Vasif"]
[WhiteFideId "13306766"]
[BlackFideId "13402935"]
[WhiteElo "2628"]
[BlackElo "2543"]
[Result "1/2-1/2"]
[Round "04"]
[TimeControl "180+2"]
[Date "2023.03.21"]
[WhiteClock "0:00:19"]
[BlackClock "0:00:08"]

1. c4 {[%clk 0:03:00]}  c5 {[%clk 0:02:57]} 2. Nf3 {[%clk 0:03:00]}  Nf6 {[%clk 0:02:57]} 3. Nc3 {[%clk 0:03:00]}  e6 {[%clk 0:02:58]} 4. g3 {[%clk 0:03:00]}  b6 {[%clk 0:02:58]} 5. Bg2 {[%clk 0:03:00]}  Bb7 {[%clk 0:02:59]} 6. O-O {[%clk 0:03:00]}  Be7 {[%clk 0:02:59]} 7. Re1 {[%clk 0:03:01]}  Ne4 {[%clk 0:02:57]} 8. Nxe4 {[%clk 0:02:58]}  Bxe4 {[%clk 0:02:58]} 9. d3 {[%clk 0:02:59]}  Bb7 {[%clk 0:02:58]} 10. e4 {[%clk 0:03:00]}  d6 {[%clk 0:02:59]} 11. d4 {[%clk 0:02:59]}  cxd4 {[%clk 0:02:59]} 12. Nxd4 {[%clk 0:03:00]}  a6 {[%clk 0:02:57]} 13. b3 {[%clk 0:03:01]}  Qc7 {[%clk 0:02:57]} 14. Bb2 {[%clk 0:03:01]}  Nd7 {[%clk 0:02:56]} 15. Rc1 {[%clk 0:03:02]}  O-O {[%clk 0:02:54]} 16. Qe2 {[%clk 0:02:56]}  Rfe8 {[%clk 0:02:52]} 17. h4 {[%clk 0:02:56]}  Rac8 {[%clk 0:02:46]} 18. Qe3 {[%clk 0:02:54]}  Qb8 {[%clk 0:02:41]} 19. Ne2 {[%clk 0:02:46]}  Qa8 {[%clk 0:02:33]} 20. Nf4 {[%clk 0:02:45]}  Bf8 {[%clk 0:02:26]} 21. Nh5 {[%clk 0:02:44]}  Rc5 {[%clk 0:02:21]} 22. Nf4 {[%clk 0:02:39]}  b5 {[%clk 0:02:18]} 23. Nd3 {[%clk 0:02:29]}  Rcc8 {[%clk 0:02:18]} 24. cxb5 {[%clk 0:02:27]}  axb5 {[%clk 0:02:19]} 25. a3 {[%clk 0:02:25]}  Nc5 {[%clk 0:02:14]} 26. Nxc5 {[%clk 0:02:24]}  dxc5 {[%clk 0:02:15]} 27. h5 {[%clk 0:02:21]}  h6 {[%clk 0:02:14]} 28. g4 {[%clk 0:02:20]}  Be7 {[%clk 0:02:11]} 29. f4 {[%clk 0:02:12]}  c4 {[%clk 0:02:11]} 30. bxc4 {[%clk 0:02:05]}  bxc4 {[%clk 0:02:11]} 31. Kh2 {[%clk 0:02:02]}  Red8 {[%clk 0:01:57]} 32. Red1 {[%clk 0:01:57]}  Qa4 {[%clk 0:01:45]} 33. Rxd8+ {[%clk 0:01:39]}  Rxd8 {[%clk 0:01:46]} 34. Qc3 {[%clk 0:01:39]}  Bf6 {[%clk 0:01:36]} 35. e5 {[%clk 0:01:35]}  Bxg2 {[%clk 0:01:37]} 36. exf6 {[%clk 0:01:31]}  Bb7 {[%clk 0:01:25]} 37. fxg7 {[%clk 0:00:43]}  Qc6 {[%clk 0:00:58]} 38. Rg1 {[%clk 0:00:42]}  Rd3 {[%clk 0:00:52]} 39. Qb4 {[%clk 0:00:42]}  Rh3+ {[%clk 0:00:04]} 40. Kxh3 {[%clk 0:00:40]}  Qf3+ {[%clk 0:00:05]} 41. Kh4 {[%clk 0:00:23]}  Qf2+ {[%clk 0:00:05]} 42. Rg3 {[%clk 0:00:18]}  Qh2+ {[%clk 0:00:05]} 43. Rh3 {[%clk 0:00:19]}  Qf2+ {[%clk 0:00:06]} 44. Rg3 {[%clk 0:00:18]}  Qh2+ {[%clk 0:00:07]} 45. Rh3 {[%clk 0:00:18]}  Qf2+ {[%clk 0:00:08]} 46. Rg3 {[%clk 0:00:19]} 1/2-1/2


[Site "https://www.chess.com"]

[Event "Titled Tuesday Blitz March 21 Late 2023"]
[White "Fedoseev, Vladimir"]
[Black "Movahed, Sina"]
[WhiteFideId "24130737"]
[BlackFideId "42520835"]
[WhiteElo "2752"]
[BlackElo "2225"]
[Result "0-1"]
[Round "04"]
[TimeControl "180+2"]
[Date "2023.03.21"]
[WhiteClock "0:00:03"]
[BlackClock "0:00:03"]

1. e4 {[%clk 0:03:00]}  c5 {[%clk 0:02:59]} 2. Nf3 {[%clk 0:03:00]}  d6 {[%clk 0:03:00]} 3. d4 {[%clk 0:02:54]}  cxd4 {[%clk 0:03:00]} 4. Nxd4 {[%clk 0:02:54]}  Nf6 {[%clk 0:03:01]} 5. Nc3 {[%clk 0:02:55]}  g6 {[%clk 0:03:00]} 6. Be2 {[%clk 0:02:52]}  Bg7 {[%clk 0:02:58]} 7. O-O {[%clk 0:02:53]}  O-O {[%clk 0:02:58]} 8. Nb3 {[%clk 0:02:53]}  Nc6 {[%clk 0:02:59]} 9. Kh1 {[%clk 0:02:51]}  a5 {[%clk 0:02:58]} 10. a4 {[%clk 0:02:41]}  Nd7 {[%clk 0:02:52]} 11. Nb5 {[%clk 0:02:37]}  b6 {[%clk 0:02:47]} 12. c3 {[%clk 0:02:34]}  Nc5 {[%clk 0:02:47]} 13. Nxc5 {[%clk 0:02:29]}  bxc5 {[%clk 0:02:48]} 14. f4 {[%clk 0:02:29]}  Bb7 {[%clk 0:02:47]} 15. Be3 {[%clk 0:02:28]}  Qd7 {[%clk 0:02:41]} 16. Qc2 {[%clk 0:02:27]}  Rad8 {[%clk 0:02:39]} 17. Rad1 {[%clk 0:02:27]}  Qc8 {[%clk 0:02:38]} 18. Bc4 {[%clk 0:02:22]}  Qb8 {[%clk 0:02:27]} 19. Qb3 {[%clk 0:02:10]}  Na7 {[%clk 0:02:00]} 20. e5 {[%clk 0:01:44]}  Qa8 {[%clk 0:01:56]} 21. Bd5 {[%clk 0:01:33]}  dxe5 {[%clk 0:01:40]} 22. Nc7 {[%clk 0:01:21]}  Bxd5 {[%clk 0:01:34]} 23. Nxd5 {[%clk 0:01:22]}  e6 {[%clk 0:01:25]} 24. Ne7+ {[%clk 0:01:16]}  Kh8 {[%clk 0:01:25]} 25. fxe5 {[%clk 0:01:07]}  Rxd1 {[%clk 0:01:06]} 26. Qxd1 {[%clk 0:01:07]}  Nc6 {[%clk 0:00:54]} 27. Nxc6 {[%clk 0:00:40]}  Qxc6 {[%clk 0:00:55]} 28. Qd6 {[%clk 0:00:40]}  Qxa4 {[%clk 0:00:51]} 29. Bxc5 {[%clk 0:00:35]}  Qc4 {[%clk 0:00:24]} 30. Kg1 {[%clk 0:00:33]}  Kg8 {[%clk 0:00:22]} 31. Qb6 {[%clk 0:00:21]}  Rc8 {[%clk 0:00:19]} 32. Bd4 {[%clk 0:00:22]}  a4 {[%clk 0:00:18]} 33. Qb7 {[%clk 0:00:17]}  Rc7 {[%clk 0:00:17]} 34. Qb8+ {[%clk 0:00:13]}  Bf8 {[%clk 0:00:17]} 35. h3 {[%clk 0:00:12]}  Qc6 {[%clk 0:00:16]} 36. Be3 {[%clk 0:00:10]}  Rc8 {[%clk 0:00:13]} 37. Qa7 {[%clk 0:00:09]}  Rc7 {[%clk 0:00:13]} 38. Qa5 {[%clk 0:00:07]}  Rb7 {[%clk 0:00:12]} 39. Rf2 {[%clk 0:00:07]}  Rb5 {[%clk 0:00:12]} 40. Qd8 {[%clk 0:00:06]}  Rxe5 {[%clk 0:00:11]} 41. Bh6 {[%clk 0:00:05]}  Re1+ {[%clk 0:00:11]} 42. Kh2 {[%clk 0:00:05]}  Qd6+ {[%clk 0:00:11]} 43. Qxd6 {[%clk 0:00:05]}  Bxd6+ {[%clk 0:00:12]} 44. g3 {[%clk 0:00:06]}  f5 {[%clk 0:00:12]} 45. Rd2 {[%clk 0:00:06]}  Bc5 {[%clk 0:00:12]} 46. Rd7 {[%clk 0:00:06]}  Re2+ {[%clk 0:00:12]} 47. Kh1 {[%clk 0:00:07]}  Rxb2 {[%clk 0:00:10]} 48. Rg7+ {[%clk 0:00:07]}  Kh8 {[%clk 0:00:11]} 49. Rc7 {[%clk 0:00:08]}  Rb1+ {[%clk 0:00:09]} 50. Kg2 {[%clk 0:00:08]}  Rb2+ {[%clk 0:00:10]} 51. Kf1 {[%clk 0:00:09]}  Kg8 {[%clk 0:00:04]} 52. Rg7+ {[%clk 0:00:05]}  Kh8 {[%clk 0:00:04]} 53. Rc7 {[%clk 0:00:06]}  Kg8 {[%clk 0:00:03]} 54. Rxc5 {[%clk 0:00:05]}  a3 {[%clk 0:00:03]} 55. Rc8+ {[%clk 0:00:04]}  Kf7 {[%clk 0:00:03]} 56. Rc7+ {[%clk 0:00:02]}  Ke8 {[%clk 0:00:04]} 57. c4 {[%clk 0:00:02]}  a2 {[%clk 0:00:04]} 58. Bg7 {[%clk 0:00:03]}  a1=Q# {[%clk 0:00:03]} 0-1


[Site "https://www.chess.com"]

[Event "Titled Tuesday Blitz March 21 Late 2023"]
[White "Costachi, Mihnea"]
[Black "Bortnyk, Olexandr"]
[WhiteFideId "1217518"]
[BlackFideId "14120828"]
[WhiteElo "2456"]
[BlackElo "2734"]
[Result "0-1"]
[Round "04"]
[TimeControl "180+2"]
[Date "2023.03.21"]
[WhiteClock "0:01:00"]
[BlackClock "0:01:35"]

1. d4 {[%clk 0:03:00]}  d6 {[%clk 0:03:00]} 2. Nf3 {[%clk 0:03:00]}  Nf6 {[%clk 0:03:01]} 3. g3 {[%clk 0:03:01]}  g6 {[%clk 0:03:01]} 4. Bg2 {[%clk 0:03:01]}  Bg7 {[%clk 0:03:02]} 5. O-O {[%clk 0:03:02]}  O-O {[%clk 0:03:03]} 6. b3 {[%clk 0:03:02]}  a5 {[%clk 0:03:02]} 7. a4 {[%clk 0:03:01]}  Nc6 {[%clk 0:03:02]} 8. Bb2 {[%clk 0:03:00]}  Bf5 {[%clk 0:03:02]} 9. Na3 {[%clk 0:02:33]}  Qd7 {[%clk 0:03:00]} 10. Re1 {[%clk 0:02:33]}  Be4 {[%clk 0:02:59]} 11. Bf1 {[%clk 0:02:21]}  Bxf3 {[%clk 0:02:42]} 12. exf3 {[%clk 0:02:21]}  d5 {[%clk 0:02:42]} 13. Nb5 {[%clk 0:02:17]}  Rfe8 {[%clk 0:02:39]} 14. Bg2 {[%clk 0:02:10]}  e6 {[%clk 0:02:39]} 15. f4 {[%clk 0:02:10]}  Bf8 {[%clk 0:02:38]} 16. Ba3 {[%clk 0:02:09]}  Bxa3 {[%clk 0:02:37]} 17. Nxa3 {[%clk 0:02:09]}  Ne7 {[%clk 0:02:32]} 18. c3 {[%clk 0:02:06]}  Rac8 {[%clk 0:02:29]} 19. Bf1 {[%clk 0:02:01]}  b6 {[%clk 0:02:27]} 20. Ba6 {[%clk 0:02:00]}  Ra8 {[%clk 0:02:27]} 21. Bd3 {[%clk 0:01:59]}  h5 {[%clk 0:02:26]} 22. Nc2 {[%clk 0:01:57]}  Red8 {[%clk 0:02:26]} 23. Ne3 {[%clk 0:01:56]}  c5 {[%clk 0:02:26]} 24. Bb5 {[%clk 0:01:56]}  Qd6 {[%clk 0:02:26]} 25. Qd3 {[%clk 0:01:54]}  Rac8 {[%clk 0:02:26]} 26. Rac1 {[%clk 0:01:52]}  Rc7 {[%clk 0:02:27]} 27. c4 {[%clk 0:01:46]}  dxc4 {[%clk 0:02:08]} 28. Nxc4 {[%clk 0:01:43]}  Qxd4 {[%clk 0:02:09]} 29. Qxd4 {[%clk 0:01:42]}  Rxd4 {[%clk 0:01:58]} 30. Nxb6 {[%clk 0:01:42]}  Rb4 {[%clk 0:01:58]} 31. Nc4 {[%clk 0:01:30]}  Ra7 {[%clk 0:01:57]} 32. Re3 {[%clk 0:01:20]}  Nf5 {[%clk 0:01:55]} 33. Rd3 {[%clk 0:01:16]}  Nd4 {[%clk 0:01:55]} 34. Ne5 {[%clk 0:01:15]}  Ne2+ {[%clk 0:01:50]} 35. Kg2 {[%clk 0:01:07]}  Nxc1 {[%clk 0:01:51]} 36. Rd8+ {[%clk 0:01:06]}  Kg7 {[%clk 0:01:51]} 37. Nc6 {[%clk 0:01:07]}  Rc7 {[%clk 0:01:50]} 38. Nxb4 {[%clk 0:01:06]}  cxb4 {[%clk 0:01:51]} 39. Bc4 {[%clk 0:01:04]}  Nd7 {[%clk 0:01:42]} 40. Ra8 {[%clk 0:01:02]}  Nb6 {[%clk 0:01:43]} 41. Rxa5 {[%clk 0:01:02]}  Nxc4 {[%clk 0:01:43]} 42. bxc4 {[%clk 0:01:03]}  Rxc4 {[%clk 0:01:43]} 43. Rb5 {[%clk 0:01:04]}  b3 {[%clk 0:01:44]} 44. a5 {[%clk 0:01:04]}  Ra4 {[%clk 0:01:44]} 45. Kf3 {[%clk 0:01:04]}  Ra3 {[%clk 0:01:33]} 46. Ke3 {[%clk 0:01:02]}  b2+ {[%clk 0:01:34]} 47. Kd2 {[%clk 0:01:02]}  Nb3+ {[%clk 0:01:33]} 48. Kc2 {[%clk 0:00:59]}  Nd4+ {[%clk 0:01:34]} 49. Kxb2 {[%clk 0:01:00]}  Nxb5 {[%clk 0:01:35]} 50. a6 {[%clk 0:01:00]}  Rxa6 {[%clk 0:01:35]} 0-1


[Site "https://www.chess.com"]

[Event "Titled Tuesday Blitz March 21 Late 2023"]
[White "Van Foreest, Jorden"]
[Black "Rasulov, Vugar"]
[WhiteFideId "1039784"]
[BlackFideId "13402390"]
[WhiteElo "2633"]
[BlackElo "2509"]
[Result "1/2-1/2"]
[Round "04"]
[TimeControl "180+2"]
[Date "2023.03.21"]
[WhiteClock "0:00:11"]
[BlackClock "0:00:06"]

1. e4 {[%clk 0:03:00]}  c5 {[%clk 0:02:59]} 2. Nf3 {[%clk 0:02:59]}  Nc6 {[%clk 0:03:00]} 3. Bc4 {[%clk 0:02:57]}  e6 {[%clk 0:02:58]} 4. O-O {[%clk 0:02:57]}  d6 {[%clk 0:02:56]} 5. d4 {[%clk 0:02:53]}  cxd4 {[%clk 0:02:57]} 6. Nxd4 {[%clk 0:02:54]}  Nf6 {[%clk 0:02:57]} 7. Nc3 {[%clk 0:02:54]}  Be7 {[%clk 0:02:57]} 8. a4 {[%clk 0:02:51]}  O-O {[%clk 0:02:57]} 9. Re1 {[%clk 0:02:48]}  a6 {[%clk 0:02:55]} 10. Nxc6 {[%clk 0:02:48]}  bxc6 {[%clk 0:02:55]} 11. a5 {[%clk 0:02:49]}  d5 {[%clk 0:02:54]} 12. Bd3 {[%clk 0:02:48]}  Rb8 {[%clk 0:02:29]} 13. h3 {[%clk 0:02:42]}  g6 {[%clk 0:02:25]} 14. Qf3 {[%clk 0:02:34]}  Bb7 {[%clk 0:02:17]} 15. Bf4 {[%clk 0:02:32]}  Rc8 {[%clk 0:02:12]} 16. Qe2 {[%clk 0:02:21]}  Ra8 {[%clk 0:02:00]} 17. Bd2 {[%clk 0:02:20]}  Re8 {[%clk 0:01:45]} 18. Na4 {[%clk 0:02:19]}  c5 {[%clk 0:01:44]} 19. Nb6 {[%clk 0:02:18]}  c4 {[%clk 0:01:42]} 20. Bxc4 {[%clk 0:01:57]}  dxc4 {[%clk 0:01:43]} 21. Nxa8 {[%clk 0:01:57]}  Qxa8 {[%clk 0:01:40]} 22. f3 {[%clk 0:01:58]}  Qc8 {[%clk 0:01:37]} 23. Be3 {[%clk 0:01:53]}  Qc7 {[%clk 0:01:29]} 24. Ra4 {[%clk 0:01:51]}  Rc8 {[%clk 0:01:27]} 25. Rd1 {[%clk 0:01:51]}  Nh5 {[%clk 0:01:25]} 26. b3 {[%clk 0:01:47]}  cxb3 {[%clk 0:01:24]} 27. cxb3 {[%clk 0:01:48]}  Rd8 {[%clk 0:01:16]} 28. Rxd8+ {[%clk 0:01:46]}  Qxd8 {[%clk 0:01:17]} 29. Qd2 {[%clk 0:01:43]}  Qxd2 {[%clk 0:00:59]} 30. Bxd2 {[%clk 0:01:43]}  Bc5+ {[%clk 0:01:00]} 31. Kf1 {[%clk 0:01:38]}  Bc6 {[%clk 0:00:59]} 32. Ra1 {[%clk 0:01:29]}  Bb5+ {[%clk 0:00:58]} 33. Ke1 {[%clk 0:01:30]}  e5 {[%clk 0:00:55]} 34. Rc1 {[%clk 0:01:30]}  Bd4 {[%clk 0:00:52]} 35. Bh6 {[%clk 0:01:26]}  f5 {[%clk 0:00:48]} 36. Rc7 {[%clk 0:01:24]}  fxe4 {[%clk 0:00:48]} 37. fxe4 {[%clk 0:01:25]}  Nf4 {[%clk 0:00:36]} 38. Kd2 {[%clk 0:01:16]}  Ne6 {[%clk 0:00:22]} 39. Re7 {[%clk 0:01:12]}  Nc5 {[%clk 0:00:23]} 40. Rg7+ {[%clk 0:00:40]}  Kf8 {[%clk 0:00:23]} 41. Rxg6+ {[%clk 0:00:41]}  Kf7 {[%clk 0:00:22]} 42. Rg4 {[%clk 0:00:42]}  Nxb3+ {[%clk 0:00:21]} 43. Kc2 {[%clk 0:00:42]}  Nc5 {[%clk 0:00:18]} 44. Rg7+ {[%clk 0:00:32]}  Ke6 {[%clk 0:00:19]} 45. Rxh7 {[%clk 0:00:33]}  Nxe4 {[%clk 0:00:19]} 46. g4 {[%clk 0:00:30]}  Nf6 {[%clk 0:00:17]} 47. Rh8 {[%clk 0:00:25]}  e4 {[%clk 0:00:17]} 48. Rb8 {[%clk 0:00:18]}  Nd5 {[%clk 0:00:17]} 49. g5 {[%clk 0:00:15]}  e3 {[%clk 0:00:17]} 50. g6 {[%clk 0:00:16]}  e2 {[%clk 0:00:13]} 51. Bd2 {[%clk 0:00:16]}  Ne3+ {[%clk 0:00:13]} 52. Kb3 {[%clk 0:00:15]}  Nc4 {[%clk 0:00:12]} 53. Be1 {[%clk 0:00:15]}  Nd6 {[%clk 0:00:10]} 54. h4 {[%clk 0:00:12]}  Bc4+ {[%clk 0:00:10]} 55. Kc2 {[%clk 0:00:12]}  Nf5 {[%clk 0:00:10]} 56. h5 {[%clk 0:00:11]}  Ne3+ {[%clk 0:00:11]} 57. Kd2 {[%clk 0:00:10]}  Ng2 {[%clk 0:00:11]} 58. Re8+ {[%clk 0:00:10]}  Kf5 {[%clk 0:00:10]} 59. Rxe2 {[%clk 0:00:08]}  Bxe2 {[%clk 0:00:11]} 60. Kxe2 {[%clk 0:00:09]}  Nf4+ {[%clk 0:00:12]} 61. Kd2 {[%clk 0:00:07]}  Nxh5 {[%clk 0:00:12]} 62. Kd3 {[%clk 0:00:07]}  Bg1 {[%clk 0:00:07]} 63. Kc4 {[%clk 0:00:07]}  Ke6 {[%clk 0:00:08]} 64. Bc3 {[%clk 0:00:06]}  Nf4 {[%clk 0:00:04]} 65. g7 {[%clk 0:00:05]}  Kf7 {[%clk 0:00:05]} 66. Bd4 {[%clk 0:00:04]}  Bxd4 {[%clk 0:00:04]} 67. Kxd4 {[%clk 0:00:05]}  Kxg7 {[%clk 0:00:04]} 68. Kc5 {[%clk 0:00:05]}  Nd3+ {[%clk 0:00:03]} 69. Kb6 {[%clk 0:00:05]}  Nb4 {[%clk 0:00:03]} 70. Kc5 {[%clk 0:00:06]}  Nc2 {[%clk 0:00:04]} 71. Kb6 {[%clk 0:00:06]}  Nb4 {[%clk 0:00:05]} 72. Kc5 {[%clk 0:00:07]}  Nd3+ {[%clk 0:00:05]} 73. Kb6 {[%clk 0:00:07]}  Kf6 {[%clk 0:00:05]} 74. Kxa6 {[%clk 0:00:07]}  Ne5 {[%clk 0:00:04]} 75. Kb5 {[%clk 0:00:05]}  Nf7 {[%clk 0:00:04]} 76. Kc6 {[%clk 0:00:04]}  Ne5+ {[%clk 0:00:04]} 77. Kb5 {[%clk 0:00:03]}  Nf7 {[%clk 0:00:04]} 78. Kc6 {[%clk 0:00:04]}  Ne5+ {[%clk 0:00:03]} 79. Kb7 {[%clk 0:00:05]}  Nd3 {[%clk 0:00:03]} 80. Kb6 {[%clk 0:00:04]}  Nb4 {[%clk 0:00:04]} 81. Kb5 {[%clk 0:00:05]}  Nd5 {[%clk 0:00:04]} 82. Kc5 {[%clk 0:00:05]}  Nc7 {[%clk 0:00:04]} 83. Kc6 {[%clk 0:00:06]}  Na6 {[%clk 0:00:04]} 84. Kb7 {[%clk 0:00:06]}  Nb4 {[%clk 0:00:04]} 85. Kb6 {[%clk 0:00:07]}  Ke5 {[%clk 0:00:05]} 86. Kc5 {[%clk 0:00:08]}  Na6+ {[%clk 0:00:05]} 87. Kc6 {[%clk 0:00:08]}  Ke6 {[%clk 0:00:05]} 88. Kb6 {[%clk 0:00:09]}  Nb4 {[%clk 0:00:05]} 89. Kb5 {[%clk 0:00:09]}  Nd5 {[%clk 0:00:05]} 90. a6 {[%clk 0:00:10]}  Nc7+ {[%clk 0:00:05]} 91. Kb6 {[%clk 0:00:11]}  Nxa6 {[%clk 0:00:06]} 1/2-1/2


[Site "https://www.chess.com"]

[Event "Titled Tuesday Blitz March 21 Late 2023"]
[White "Bok, Benjamin"]
[Black "Drygalov, Andrey"]
[WhiteFideId "1017063"]
[BlackFideId "24171735"]
[WhiteElo "2658"]
[BlackElo "2471"]
[Result "1-0"]
[Round "04"]
[TimeControl "180+2"]
[Date "2023.03.21"]
[WhiteClock "0:00:05"]
[BlackClock "0:00:08"]

1. d4 {[%clk 0:02:57]}  Nf6 {[%clk 0:03:00]} 2. c4 {[%clk 0:02:56]}  e6 {[%clk 0:03:00]} 3. Nc3 {[%clk 0:02:56]}  Bb4 {[%clk 0:03:00]} 4. Qc2 {[%clk 0:02:56]}  d5 {[%clk 0:02:59]} 5. a3 {[%clk 0:02:56]}  Bxc3+ {[%clk 0:02:59]} 6. Qxc3 {[%clk 0:02:57]}  O-O {[%clk 0:02:58]} 7. Bg5 {[%clk 0:02:56]}  dxc4 {[%clk 0:02:58]} 8. Qxc4 {[%clk 0:02:57]}  b6 {[%clk 0:02:56]} 9. Rd1 {[%clk 0:02:57]}  Bb7 {[%clk 0:02:49]} 10. f3 {[%clk 0:02:57]}  Qd5 {[%clk 0:02:01]} 11. Qxd5 {[%clk 0:02:51]}  Nxd5 {[%clk 0:02:00]} 12. e4 {[%clk 0:02:51]}  h6 {[%clk 0:01:59]} 13. exd5 {[%clk 0:02:19]}  hxg5 {[%clk 0:01:58]} 14. dxe6 {[%clk 0:02:20]}  fxe6 {[%clk 0:01:48]} 15. Bc4 {[%clk 0:02:20]}  Bd5 {[%clk 0:01:47]} 16. Bxd5 {[%clk 0:02:20]}  exd5 {[%clk 0:01:47]} 17. Nh3 {[%clk 0:02:21]}  g4 {[%clk 0:01:45]} 18. fxg4 {[%clk 0:02:20]}  Nc6 {[%clk 0:01:44]} 19. Rc1 {[%clk 0:01:10]}  Rae8+ {[%clk 0:01:40]} 20. Kd2 {[%clk 0:01:08]}  Nxd4 {[%clk 0:01:33]} 21. Rxc7 {[%clk 0:01:05]}  Nb3+ {[%clk 0:01:22]} 22. Kc2 {[%clk 0:00:47]}  Nc5 {[%clk 0:01:20]} 23. Rd1 {[%clk 0:00:46]}  Re2+ {[%clk 0:00:59]} 24. Rd2 {[%clk 0:00:46]}  Re5 {[%clk 0:00:45]} 25. Ng1 {[%clk 0:00:22]}  Re4 {[%clk 0:00:37]} 26. Nf3 {[%clk 0:00:16]}  Rc4+ {[%clk 0:00:25]} 27. Kb1 {[%clk 0:00:16]}  Rxg4 {[%clk 0:00:24]} 28. Rxa7 {[%clk 0:00:15]}  Ne4 {[%clk 0:00:24]} 29. Rc2 {[%clk 0:00:14]}  Nc5 {[%clk 0:00:21]} 30. Ka2 {[%clk 0:00:14]}  d4 {[%clk 0:00:21]} 31. Rd2 {[%clk 0:00:13]}  d3 {[%clk 0:00:20]} 32. Ne5 {[%clk 0:00:11]}  Re4 {[%clk 0:00:17]} 33. Nd7 {[%clk 0:00:07]}  Re7 {[%clk 0:00:09]} 34. Nxf8 {[%clk 0:00:06]}  Rxa7 {[%clk 0:00:09]} 35. Ng6 {[%clk 0:00:07]}  Rf7 {[%clk 0:00:08]} 36. b4 {[%clk 0:00:06]}  Ne4 {[%clk 0:00:04]} 37. Rxd3 {[%clk 0:00:06]}  Rf2+ {[%clk 0:00:04]} 38. Kb3 {[%clk 0:00:07]}  Rxg2 {[%clk 0:00:05]} 39. Nf4 {[%clk 0:00:04]}  Rxh2 {[%clk 0:00:05]} 40. a4 {[%clk 0:00:04]}  g5 {[%clk 0:00:05]} 41. Nd5 {[%clk 0:00:04]}  g4 {[%clk 0:00:05]} 42. Re3 {[%clk 0:00:02]}  Nd2+ {[%clk 0:00:04]} 43. Kc3 {[%clk 0:00:03]}  Nf1 {[%clk 0:00:04]} 44. Re1 {[%clk 0:00:03]}  Rf2 {[%clk 0:00:04]} 45. Kc4 {[%clk 0:00:02]}  g3 {[%clk 0:00:05]} 46. Ne3 {[%clk 0:00:02]}  Nd2+ {[%clk 0:00:03]} 47. Kd3 {[%clk 0:00:02]}  Nf3 {[%clk 0:00:04]} 48. Rd1 {[%clk 0:00:02]}  g2 {[%clk 0:00:04]} 49. Nxg2 {[%clk 0:00:02]}  Rxg2 {[%clk 0:00:05]} 50. Kc4 {[%clk 0:00:02]}  Rg5 {[%clk 0:00:03]} 51. Rd6 {[%clk 0:00:02]}  Ne5+ {[%clk 0:00:04]} 52. Kd4 {[%clk 0:00:02]}  Nf7 {[%clk 0:00:02]} 53. Rxb6 {[%clk 0:00:02]}  Kf8 {[%clk 0:00:03]} 54. a5 {[%clk 0:00:03]}  Ke7 {[%clk 0:00:03]} 55. a6 {[%clk 0:00:03]}  Rg8 {[%clk 0:00:03]} 56. b5 {[%clk 0:00:02]}  Nd6 {[%clk 0:00:02]} 57. Kd5 {[%clk 0:00:02]}  Rg5+ {[%clk 0:00:01]} 58. Kc6 {[%clk 0:00:02]}  Nc4 {[%clk 0:00:02]} 59. Rb7+ {[%clk 0:00:02]}  Kd8 {[%clk 0:00:02]} 60. Rb8+ {[%clk 0:00:02]}  Ke7 {[%clk 0:00:03]} 61. a7 {[%clk 0:00:03]}  Rg6+ {[%clk 0:00:03]} 62. Kc5 {[%clk 0:00:03]}  Ne5 {[%clk 0:00:03]} 63. a8=Q {[%clk 0:00:03]}  Nd7+ {[%clk 0:00:04]} 64. Kb4 {[%clk 0:00:03]}  Rg4+ {[%clk 0:00:04]} 65. Kc3 {[%clk 0:00:04]}  Rg3+ {[%clk 0:00:05]} 66. Kd2 {[%clk 0:00:04]}  Nxb8 {[%clk 0:00:04]} 67. Qxb8 {[%clk 0:00:04]}  Rg2+ {[%clk 0:00:05]} 68. Ke3 {[%clk 0:00:04]}  Rg6 {[%clk 0:00:06]} 69. b6 {[%clk 0:00:04]}  Re6+ {[%clk 0:00:06]} 70. Kf4 {[%clk 0:00:05]}  Kd7 {[%clk 0:00:07]} 71. Qc7+ {[%clk 0:00:04]}  Ke8 {[%clk 0:00:07]} 72. b7 {[%clk 0:00:05]}  Rf6+ {[%clk 0:00:08]} 73. Kg3 {[%clk 0:00:05]} 1-0


[Site "https://www.chess.com"]